{"text_format":"1","workbook":"xlsx","n_sheets":4,"sheets":["LYCEE-BAC PRO OL","ELEVES","Grilles BAC PRO","Cache"],"not_rendered":{"charts":0,"images":0,"macros":1,"external_links":1,"defined_names":7,"comments":2,"pivot_tables":0},"unopened":[],"bounds":{"document_bytes":16777216,"sheet_cells":100000,"rows_first":2000,"rows_last":500,"rows_between":2000,"halvings":0,"cell_chars":16384,"cell_head_chars":4096},"cells_cut":0,"cells_raw":0,"read":"whole","date_system":"1900"}

{"sheet":"LYCEE-BAC PRO OL","index":0,"n_rows":6,"n_cols":4,"rows_kept":6,"cut":false,"hidden":false,"merged":[[5,1,7,1]]}
["Coordonnées établissement et diplôme préparé"]
["Nom Etablissement et RNE","Adresse ","CODE POSTAL Etablissement","VILLE Etablissement"]
["LPO LEONARD DE VINCI  0921230M","4 av. Georges POMPIDOU",92304,"LEVALLOIS-PERRET cedex"]
[]
[]
[null,"ALLER A LA SAISIE ELEVES"]

{"sheet":"ELEVES","index":1,"n_rows":28,"n_cols":8,"rows_kept":28,"cut":false,"hidden":false,"merged":[[1,0,1,5],[29,5,32,6]]}
[null,"Saisie des NOMS des candidats par ordre alphabétique OBLIGATOIREMENT"]
["SESSION DU BAC PRO :",null,null,null,null,null,2014]
["NOM CANDIDAT","PRENOMS","NAISSANCE\n(jj/mm/aa)","Adresse","CODE POSTAL","VILLE","Scolarisé(e) en 1ère ","X"]
["ALFRED 1","coucou 1",null,{"$f":"IF(ISBLANK('LYCEE-BAC PRO OL'!B3),\" \",'LYCEE-BAC PRO OL'!B3)","v":"4 av. Georges POMPIDOU"},{"$f":"IF(ISBLANK('LYCEE-BAC PRO OL'!C3),\" \",'LYCEE-BAC PRO OL'!C3)","v":92304},{"$f":"IF(ISBLANK('LYCEE-BAC PRO OL'!D3),\" \",'LYCEE-BAC PRO OL'!D3)","v":"LEVALLOIS-PERRET cedex"}]
["ALFRED 2","coucou 2",null,{"$f":"IF(ISBLANK('LYCEE-BAC PRO OL'!B3),\" \",'LYCEE-BAC PRO OL'!B3)","v":"4 av. Georges POMPIDOU"},{"$f":"IF(ISBLANK('LYCEE-BAC PRO OL'!C3),\" \",'LYCEE-BAC PRO OL'!C3)","v":92304},{"$f":"IF(ISBLANK('LYCEE-BAC PRO OL'!D3),\" \",'LYCEE-BAC PRO OL'!D3)","v":"LEVALLOIS-PERRET cedex"}]
["ALFRED 3","coucou 3",null,{"$f":"IF(ISBLANK('LYCEE-BAC PRO OL'!B3),\" \",'LYCEE-BAC PRO OL'!B3)","v":"4 av. Georges POMPIDOU"},{"$f":"IF(ISBLANK('LYCEE-BAC PRO OL'!C3),\" \",'LYCEE-BAC PRO OL'!C3)","v":92304},{"$f":"IF(ISBLANK('LYCEE-BAC PRO OL'!D3),\" \",'LYCEE-BAC PRO OL'!D3)","v":"LEVALLOIS-PERRET cedex"}]
["ALFRED 4","coucou 4",null,{"$f":"IF(ISBLANK('LYCEE-BAC PRO OL'!B3),\" \",'LYCEE-BAC PRO OL'!B3)","v":"4 av. Georges POMPIDOU"},{"$f":"IF(ISBLANK('LYCEE-BAC PRO OL'!C3),\" \",'LYCEE-BAC PRO OL'!C3)","v":92304},{"$f":"IF(ISBLANK('LYCEE-BAC PRO OL'!D3),\" \",'LYCEE-BAC PRO OL'!D3)","v":"LEVALLOIS-PERRET cedex"}]
["ALFRED 5","coucou 5",null,{"$f":"IF(ISBLANK('LYCEE-BAC PRO OL'!B3),\" \",'LYCEE-BAC PRO OL'!B3)","v":"4 av. Georges POMPIDOU"},{"$f":"IF(ISBLANK('LYCEE-BAC PRO OL'!C3),\" \",'LYCEE-BAC PRO OL'!C3)","v":92304},{"$f":"IF(ISBLANK('LYCEE-BAC PRO OL'!D3),\" \",'LYCEE-BAC PRO OL'!D3)","v":"LEVALLOIS-PERRET cedex"}]
["ALFRED 6","coucou 6",null,{"$f":"IF(ISBLANK('LYCEE-BAC PRO OL'!B3),\" \",'LYCEE-BAC PRO OL'!B3)","v":"4 av. Georges POMPIDOU"},{"$f":"IF(ISBLANK('LYCEE-BAC PRO OL'!C3),\" \",'LYCEE-BAC PRO OL'!C3)","v":92304},{"$f":"IF(ISBLANK('LYCEE-BAC PRO OL'!D3),\" \",'LYCEE-BAC PRO OL'!D3)","v":"LEVALLOIS-PERRET cedex"}]
["ALFRED 7","coucou 7",null,{"$f":"IF(ISBLANK('LYCEE-BAC PRO OL'!B3),\" \",'LYCEE-BAC PRO OL'!B3)","v":"4 av. Georges POMPIDOU"},{"$f":"IF(ISBLANK('LYCEE-BAC PRO OL'!C3),\" \",'LYCEE-BAC PRO OL'!C3)","v":92304},{"$f":"IF(ISBLANK('LYCEE-BAC PRO OL'!D3),\" \",'LYCEE-BAC PRO OL'!D3)","v":"LEVALLOIS-PERRET cedex"}]
["ALFRED 8","coucou 8",null,{"$f":"IF(ISBLANK('LYCEE-BAC PRO OL'!B3),\" \",'LYCEE-BAC PRO OL'!B3)","v":"4 av. Georges POMPIDOU"},{"$f":"IF(ISBLANK('LYCEE-BAC PRO OL'!C3),\" \",'LYCEE-BAC PRO OL'!C3)","v":92304},{"$f":"IF(ISBLANK('LYCEE-BAC PRO OL'!D3),\" \",'LYCEE-BAC PRO OL'!D3)","v":"LEVALLOIS-PERRET cedex"}]
["ALFRED 9","coucou 9",null,{"$f":"IF(ISBLANK('LYCEE-BAC PRO OL'!B3),\" \",'LYCEE-BAC PRO OL'!B3)","v":"4 av. Georges POMPIDOU"},{"$f":"IF(ISBLANK('LYCEE-BAC PRO OL'!C3),\" \",'LYCEE-BAC PRO OL'!C3)","v":92304},{"$f":"IF(ISBLANK('LYCEE-BAC PRO OL'!D3),\" \",'LYCEE-BAC PRO OL'!D3)","v":"LEVALLOIS-PERRET cedex"}]
["ALFRED 10","coucou 10",null,{"$f":"IF(ISBLANK('LYCEE-BAC PRO OL'!B3),\" \",'LYCEE-BAC PRO OL'!B3)","v":"4 av. Georges POMPIDOU"},{"$f":"IF(ISBLANK('LYCEE-BAC PRO OL'!C3),\" \",'LYCEE-BAC PRO OL'!C3)","v":92304},{"$f":"IF(ISBLANK('LYCEE-BAC PRO OL'!D3),\" \",'LYCEE-BAC PRO OL'!D3)","v":"LEVALLOIS-PERRET cedex"}]
["ALFRED 11","coucou 11",null,{"$f":"IF(ISBLANK('LYCEE-BAC PRO OL'!B3),\" \",'LYCEE-BAC PRO OL'!B3)","v":"4 av. Georges POMPIDOU"},{"$f":"IF(ISBLANK('LYCEE-BAC PRO OL'!C3),\" \",'LYCEE-BAC PRO OL'!C3)","v":92304},{"$f":"IF(ISBLANK('LYCEE-BAC PRO OL'!D3),\" \",'LYCEE-BAC PRO OL'!D3)","v":"LEVALLOIS-PERRET cedex"}]
["ALFRED 12","coucou 12",null,{"$f":"IF(ISBLANK('LYCEE-BAC PRO OL'!B3),\" \",'LYCEE-BAC PRO OL'!B3)","v":"4 av. Georges POMPIDOU"},{"$f":"IF(ISBLANK('LYCEE-BAC PRO OL'!C3),\" \",'LYCEE-BAC PRO OL'!C3)","v":92304},{"$f":"IF(ISBLANK('LYCEE-BAC PRO OL'!D3),\" \",'LYCEE-BAC PRO OL'!D3)","v":"LEVALLOIS-PERRET cedex"}]
["ALFRED 13","coucou 13",null,{"$f":"IF(ISBLANK('LYCEE-BAC PRO OL'!B3),\" \",'LYCEE-BAC PRO OL'!B3)","v":"4 av. Georges POMPIDOU"},{"$f":"IF(ISBLANK('LYCEE-BAC PRO OL'!C3),\" \",'LYCEE-BAC PRO OL'!C3)","v":92304},{"$f":"IF(ISBLANK('LYCEE-BAC PRO OL'!D3),\" \",'LYCEE-BAC PRO OL'!D3)","v":"LEVALLOIS-PERRET cedex"}]
["ALFRED 14","coucou 14",null,{"$f":"IF(ISBLANK('LYCEE-BAC PRO OL'!B3),\" \",'LYCEE-BAC PRO OL'!B3)","v":"4 av. Georges POMPIDOU"},{"$f":"IF(ISBLANK('LYCEE-BAC PRO OL'!C3),\" \",'LYCEE-BAC PRO OL'!C3)","v":92304},{"$f":"IF(ISBLANK('LYCEE-BAC PRO OL'!D3),\" \",'LYCEE-BAC PRO OL'!D3)","v":"LEVALLOIS-PERRET cedex"}]
["ALFRED 15","coucou 15",null,{"$f":"IF(ISBLANK('LYCEE-BAC PRO OL'!B3),\" \",'LYCEE-BAC PRO OL'!B3)","v":"4 av. Georges POMPIDOU"},{"$f":"IF(ISBLANK('LYCEE-BAC PRO OL'!C3),\" \",'LYCEE-BAC PRO OL'!C3)","v":92304},{"$f":"IF(ISBLANK('LYCEE-BAC PRO OL'!D3),\" \",'LYCEE-BAC PRO OL'!D3)","v":"LEVALLOIS-PERRET cedex"}]
["ALFRED 16","coucou 16",null,{"$f":"IF(ISBLANK('LYCEE-BAC PRO OL'!B3),\" \",'LYCEE-BAC PRO OL'!B3)","v":"4 av. Georges POMPIDOU"},{"$f":"IF(ISBLANK('LYCEE-BAC PRO OL'!C3),\" \",'LYCEE-BAC PRO OL'!C3)","v":92304},{"$f":"IF(ISBLANK('LYCEE-BAC PRO OL'!D3),\" \",'LYCEE-BAC PRO OL'!D3)","v":"LEVALLOIS-PERRET cedex"}]
["ALFRED 17","coucou 17",null,{"$f":"IF(ISBLANK('LYCEE-BAC PRO OL'!B3),\" \",'LYCEE-BAC PRO OL'!B3)","v":"4 av. Georges POMPIDOU"},{"$f":"IF(ISBLANK('LYCEE-BAC PRO OL'!C3),\" \",'LYCEE-BAC PRO OL'!C3)","v":92304},{"$f":"IF(ISBLANK('LYCEE-BAC PRO OL'!D3),\" \",'LYCEE-BAC PRO OL'!D3)","v":"LEVALLOIS-PERRET cedex"}]
["ALFRED 18","coucou 18",null,{"$f":"IF(ISBLANK('LYCEE-BAC PRO OL'!B3),\" \",'LYCEE-BAC PRO OL'!B3)","v":"4 av. Georges POMPIDOU"},{"$f":"IF(ISBLANK('LYCEE-BAC PRO OL'!C3),\" \",'LYCEE-BAC PRO OL'!C3)","v":92304},{"$f":"IF(ISBLANK('LYCEE-BAC PRO OL'!D3),\" \",'LYCEE-BAC PRO OL'!D3)","v":"LEVALLOIS-PERRET cedex"}]
["ALFRED 19","coucou 19",null,{"$f":"IF(ISBLANK('LYCEE-BAC PRO OL'!B3),\" \",'LYCEE-BAC PRO OL'!B3)","v":"4 av. Georges POMPIDOU"},{"$f":"IF(ISBLANK('LYCEE-BAC PRO OL'!C3),\" \",'LYCEE-BAC PRO OL'!C3)","v":92304},{"$f":"IF(ISBLANK('LYCEE-BAC PRO OL'!D3),\" \",'LYCEE-BAC PRO OL'!D3)","v":"LEVALLOIS-PERRET cedex"}]
["ALFRED 20","coucou 20",null,{"$f":"IF(ISBLANK('LYCEE-BAC PRO OL'!B3),\" \",'LYCEE-BAC PRO OL'!B3)","v":"4 av. Georges POMPIDOU"},{"$f":"IF(ISBLANK('LYCEE-BAC PRO OL'!C3),\" \",'LYCEE-BAC PRO OL'!C3)","v":92304},{"$f":"IF(ISBLANK('LYCEE-BAC PRO OL'!D3),\" \",'LYCEE-BAC PRO OL'!D3)","v":"LEVALLOIS-PERRET cedex"}]
["ALFRED 21","coucou 21",null,{"$f":"IF(ISBLANK('LYCEE-BAC PRO OL'!B3),\" \",'LYCEE-BAC PRO OL'!B3)","v":"4 av. Georges POMPIDOU"},{"$f":"IF(ISBLANK('LYCEE-BAC PRO OL'!C3),\" \",'LYCEE-BAC PRO OL'!C3)","v":92304},{"$f":"IF(ISBLANK('LYCEE-BAC PRO OL'!D3),\" \",'LYCEE-BAC PRO OL'!D3)","v":"LEVALLOIS-PERRET cedex"}]
["ALFRED 22","coucou 22",null,{"$f":"IF(ISBLANK('LYCEE-BAC PRO OL'!B3),\" \",'LYCEE-BAC PRO OL'!B3)","v":"4 av. Georges POMPIDOU"},{"$f":"IF(ISBLANK('LYCEE-BAC PRO OL'!C3),\" \",'LYCEE-BAC PRO OL'!C3)","v":92304},{"$f":"IF(ISBLANK('LYCEE-BAC PRO OL'!D3),\" \",'LYCEE-BAC PRO OL'!D3)","v":"LEVALLOIS-PERRET cedex"}]
["ALFRED 23","coucou 23",null,{"$f":"IF(ISBLANK('LYCEE-BAC PRO OL'!B3),\" \",'LYCEE-BAC PRO OL'!B3)","v":"4 av. Georges POMPIDOU"},{"$f":"IF(ISBLANK('LYCEE-BAC PRO OL'!C3),\" \",'LYCEE-BAC PRO OL'!C3)","v":92304},{"$f":"IF(ISBLANK('LYCEE-BAC PRO OL'!D3),\" \",'LYCEE-BAC PRO OL'!D3)","v":"LEVALLOIS-PERRET cedex"}]
["ALFRED 24","coucou 24",null,{"$f":"IF(ISBLANK('LYCEE-BAC PRO OL'!B3),\" \",'LYCEE-BAC PRO OL'!B3)","v":"4 av. Georges POMPIDOU"},{"$f":"IF(ISBLANK('LYCEE-BAC PRO OL'!C3),\" \",'LYCEE-BAC PRO OL'!C3)","v":92304},{"$f":"IF(ISBLANK('LYCEE-BAC PRO OL'!D3),\" \",'LYCEE-BAC PRO OL'!D3)","v":"LEVALLOIS-PERRET cedex"}]
[null,null,null,null,null,"EFFECTIF",{"$f":"COUNTIF(G4:G27,$H$3)","v":0}]

{"sheet":"Grilles BAC PRO","index":2,"n_rows":212,"n_cols":31,"rows_kept":212,"cut":false,"hidden":false,"merged":[[207,0,208,6],[207,9,208,11],[207,14,208,14],[197,0,197,14],[199,0,200,6],[199,9,200,11],[199,14,200,14],[201,0,201,14],[202,0,202,14],[203,0,203,14],[204,0,204,14],[205,0,205,14],[188,0,190,1],[188,2,190,5],[188,6,188,11],[189,6,189,11],[190,6,190,11],[192,0,192,14],[194,0,194,14],[195,0,195,14],[196,0,196,14],[183,0,184,1],[183,2,184,5],[183,6,183,11],[184,6,184,11],[185,0,187,1],[185,2,187,5],[185,6,185,11],[186,6,186,11],[187,6,187,11],[164,3,164,14],[165,0,165,14],[166,6,166,11],[166,12,166,13],[167,0,170,5],[167,7,167,8],[167,12,167,13],[169,7,169,8],[169,12,169,13],[170,12,170,13],[171,0,171,5],[171,6,171,11],[171,12,171,14],[172,0,172,5],[172,6,172,11],[173,0,174,1],[173,2,174,5],[173,6,173,11],[174,6,174,11],[175,0,182,1],[175,2,182,5],[175,6,175,11],[176,6,176,11],[177,6,177,11],[178,6,178,11],[179,6,179,11],[180,6,180,11],[181,6,181,11],[182,6,182,11],[156,16,156,30],[158,16,159,22],[158,25,159,27],[158,30,159,30],[147,16,149,17],[147,18,149,21],[147,22,147,27],[148,22,148,27],[149,22,149,27],[151,16,151,30],[153,16,153,30],[154,16,154,30],[155,16,155,30],[142,16,143,17],[142,18,143,21],[142,22,142,27],[143,22,143,27],[144,16,146,17],[144,18,146,21],[144,22,144,27],[145,22,145,27],[146,22,146,27],[134,16,141,17],[134,18,141,21],[134,22,134,27],[135,22,135,27],[136,22,136,27],[137,22,137,27],[138,22,138,27],[139,22,139,27],[140,22,140,27],[141,22,141,27],[130,16,130,21],[130,22,130,27],[130,28,130,30],[131,16,131,21],[131,22,131,27],[132,16,133,17],[132,18,133,21],[132,22,132,27],[133,22,133,27],[123,19,123,30],[124,16,124,30],[125,22,125,27],[125,28,125,29],[126,16,129,21],[126,23,126,24],[126,28,126,29],[128,23,128,24],[128,28,128,29],[129,28,129,29],[158,0,159,6],[158,9,159,11],[158,14,159,14],[138,6,138,11],[139,6,139,11],[140,6,140,11],[147,0,149,1],[147,2,149,5],[147,6,147,11],[149,6,149,11],[145,6,145,11],[148,6,148,11],[144,0,146,1],[144,2,146,5],[144,6,144,11],[146,6,146,11],[151,0,151,14],[153,0,153,14],[154,0,154,14],[155,0,155,14],[156,0,156,14],[134,0,141,1],[134,2,141,5],[134,6,134,11],[135,6,135,11],[136,6,136,11],[137,6,137,11],[141,6,141,11],[142,0,143,1],[142,2,143,5],[142,6,142,11],[143,6,143,11],[130,0,130,5],[130,6,130,11],[130,12,130,14],[131,0,131,5],[131,6,131,11],[132,0,133,1],[132,2,133,5],[132,6,132,11],[133,6,133,11],[123,3,123,14],[124,0,124,14],[125,6,125,11],[125,12,125,13],[126,0,129,5],[126,7,126,8],[126,12,126,13],[128,7,128,8],[128,12,128,13],[129,12,129,13],[109,0,110,6],[109,9,110,11],[109,14,110,14],[111,0,111,14],[112,0,112,14],[113,0,113,14],[114,0,114,14],[115,0,115,14],[117,0,118,6],[117,9,118,11],[117,14,118,14],[101,0,102,1],[101,2,102,5],[101,6,101,11],[102,6,102,11],[103,0,103,14],[104,0,104,14],[105,0,105,14],[106,0,106,14],[107,0,107,14],[94,0,98,1],[94,2,98,5],[94,6,94,11],[95,6,95,11],[96,6,96,11],[97,6,97,11],[98,6,98,11],[99,0,100,1],[99,2,100,5],[99,6,99,11],[100,6,100,11],[86,0,86,5],[86,6,86,11],[86,12,86,14],[87,0,87,5],[87,6,87,11],[88,0,93,1],[88,2,93,5],[88,6,88,11],[89,6,89,11],[90,6,90,11],[91,6,91,11],[92,6,92,11],[93,6,93,11],[80,0,80,14],[81,6,81,11],[81,12,81,13],[82,0,85,5],[82,7,82,8],[82,12,82,13],[84,7,84,8],[84,12,84,13],[85,12,85,13],[69,16,69,30],[70,16,70,30],[71,16,71,30],[73,16,74,22],[73,25,74,27],[73,30,74,30],[66,16,66,30],[68,16,68,30],[79,3,79,14],[71,0,71,14],[73,9,74,11],[73,14,74,14],[73,0,74,6],[63,16,64,17],[63,18,64,21],[63,22,63,27],[64,22,64,27],[61,16,62,17],[61,18,62,21],[61,22,61,27],[62,22,62,27],[56,18,60,21],[56,16,60,17],[59,22,59,27],[60,22,60,27],[56,22,56,27],[57,22,57,27],[58,22,58,27],[48,16,48,21],[48,22,48,27],[48,28,48,30],[49,16,49,21],[49,22,49,27],[50,16,55,17],[50,18,55,21],[50,22,50,27],[53,22,53,27],[54,22,54,27],[55,22,55,27],[51,22,51,27],[52,22,52,27],[41,19,41,30],[42,16,42,30],[43,22,43,27],[43,28,43,29],[44,16,47,21],[44,23,44,24],[44,28,44,29],[46,23,46,24],[23,16,24,17],[23,18,24,21],[23,22,23,27],[24,22,24,27],[26,16,26,30],[28,16,28,30],[46,28,46,29],[47,28,47,29],[29,16,29,30],[33,16,33,30],[34,16,34,30],[36,16,37,22],[36,25,37,27],[36,30,37,30],[12,16,17,17],[12,18,17,21],[12,22,12,27],[13,22,13,27],[14,22,14,27],[15,22,15,27],[16,22,16,27],[17,22,17,27],[18,16,22,17],[18,18,22,21],[18,22,18,27],[19,22,19,27],[20,22,20,27],[21,22,21,27],[22,22,22,27],[8,16,8,21],[8,22,8,27],[8,28,8,30],[9,16,9,21],[9,22,9,27],[10,16,11,17],[10,18,11,21],[10,22,10,27],[11,22,11,27],[1,19,1,30],[2,19,2,30],[3,22,3,27],[3,28,3,29],[4,16,7,21],[4,23,4,24],[4,28,4,29],[6,23,6,24],[6,28,6,29],[7,28,7,29],[42,0,42,14],[70,0,70,14],[63,0,64,1],[63,2,64,5],[63,6,63,11],[64,6,64,11],[61,0,62,1],[61,2,62,5],[61,6,61,11],[62,6,62,11],[68,0,68,14],[69,0,69,14],[52,6,52,11],[55,6,55,11],[53,6,53,11],[54,6,54,11],[59,6,59,11],[66,0,66,14],[49,0,49,5],[49,6,49,11],[44,0,47,5],[50,6,50,11],[50,0,55,1],[50,2,55,5],[51,6,51,11],[56,0,60,1],[56,2,60,5],[56,6,56,11],[60,6,60,11],[57,6,57,11],[58,6,58,11],[43,6,43,11],[43,12,43,13],[44,7,44,8],[44,12,44,13],[46,7,46,8],[46,12,46,13],[47,12,47,13],[48,0,48,5],[48,6,48,11],[48,12,48,14],[41,3,41,14],[33,0,33,14],[34,0,34,14],[31,0,31,14],[36,9,37,11],[36,0,37,6],[4,0,7,5],[13,6,13,11],[14,6,14,11],[15,6,15,11],[16,6,16,11],[18,0,22,1],[18,2,22,5],[18,6,18,11],[19,6,19,11],[20,6,20,11],[21,6,21,11],[36,14,37,14],[26,0,26,14],[28,0,28,14],[29,0,29,14],[23,6,23,11],[12,0,17,1],[6,7,6,8],[24,6,24,11],[10,2,11,5],[10,0,11,1],[23,0,24,1],[11,6,11,11],[23,2,24,5],[22,6,22,11],[12,2,17,5],[12,6,12,11],[17,6,17,11],[1,3,1,14],[2,3,2,14],[8,12,8,14],[8,0,8,5],[8,6,8,11],[9,6,9,11],[9,0,9,5],[3,6,3,11],[10,6,10,11],[4,7,4,8],[3,12,3,13],[4,12,4,13],[6,12,6,13],[7,12,7,13]]}
[]
[null,null,null,"Baccalauréat professionnel Optique Lunetterie"]
[null,null,null,"Epreuve E3.1 (unité U3.1) : Examen préalable"]
["Etablissement : (tampon)",null,null,null,null,null,"Lieu d'évaluation :",null,null,null,null,null,"Session :",null,{"$f":"ELEVES!G2","v":2014}]
[null,null,null,null,null,null,null,"Etablissement :",null,null,null,null,"Nom du candidat :"]
[]
[null,null,null,null,null,null,null,"Entreprise :",null,null,null,null,"Prénom :"]
[null,null,null,null,null,null,null,null,null,null,null,null,"Date de l'évaluation :"]
["Compétences",null,null,null,null,null,"Indicateurs d'évaluation",null,null,null,null,null,"EVALUATION"]
["(ce sont celles prévues par le référentiel de certification, à l'exclusion de toute autre)",null,null,null,null,null,"(ce sont ceux du référentiel de compétences à l'exclusion de tout autre)",null,null,null,null,null,"-  -","+","+  +"]
["C1.2",null,"Recenser et appliquer les réglementations, les consignes et les procédures",null,null,null,"Les situations concernées sont reconnues"]
[null,null,null,null,null,null,"Les réglements, consignes et les procédures adaptées sont identifiées et appliquées"]
["C3.1",null,"Prendre des mesures optométriques",null,null,null,"Le client est informé et correctement installé"]
[null,null,null,null,null,null,"Le matériel utilisé est correctement choisi"]
[null,null,null,null,null,null,"La démarche de mesure est structurée"]
[null,null,null,null,null,null,"Les valeurs sont vérifiées et exactes"]
[null,null,null,null,null,null,"La fiche de mesures est correctement renseignée"]
[null,null,null,null,null,null,"Les matériels sont désinfectés"]
["C3.3",null,"Contrôler des composants,     un équipement",null,null,null,"Les valeurs de montage sont identifiées"]
[null,null,null,null,null,null,"Le contrôle est conforme par rapport aux spécifications (qualité, quantité, temps)"]
[null,null,null,null,null,null,"La fiche de contrôle est correctement renseignée"]
[null,null,null,null,null,null,"Les non conformités sont identifiées"]
[null,null,null,null,null,null,"Le produit est caractérisé"]
["C5.2",null,"Communiquer oralement",null,null,null,"La communication orale est adaptée au message et à l'interlocuteur"]
[null,null,null,null,null,null,"L'expression est claire et précise"]
[]
["SITUATION D'ÉVALUATION EN ÉTABLISSEMENT"]
[]
["Appréciation globale et proposition de note :"]
[]
[]
[]
[]
[]
[]
["Noms et signatures des évaluateurs :",null,null,null,null,null,null,"Note proposée :",null,null,null,null,"Note coefficientée :"]
[null,null,null,null,null,null,null,null,{"$f":"IF(OR(Cache!F3>=2,Cache!F4>=2,Cache!F5>=2,Cache!F6>=2,Cache!F7>=2,Cache!F8>=2,Cache!F9>=2,Cache!F10>=2,Cache!F11>=2,Cache!F12>=2,Cache!F13>=2,Cache!F14>=2,Cache!F15>=2,Cache!F16>=2,Cache!F17>=2),\"Erreur\",ROUNDUP(SUM((Cache!D19/Cache!F19)*60/100,(Cache!E19/Cache!F19))*20,0))","v":{"$error":"#DIV/0!"}},"/20",null,null,null,{"$f":"I37*3","v":{"$error":"#DIV/0!"}},"/60"]
[]
[]
[]
[]
[null,null,null,"Baccalauréat professionnel Optique Lunetterie",null,null,null,null,null,null,null,null,null,null,null,null,null,null,null,"Baccalauréat professionnel Optique Lunetterie"]
["Epreuve E3.2  (unité U3.2) : Adaptation et prise de mesures",null,null,null,null,null,null,null,null,null,null,null,null,null,null,null,"Epreuve E3.2  (unité U3.2) : Adaptation et prise de mesures"]
["Etablissement : (tampon)",null,null,null,null,null,"Lieu d'évaluation :",null,null,null,null,null,"Session :",null,{"$f":"ELEVES!G2","v":2014},null,"Etablissement : (tampon)",null,null,null,null,null,"Lieu d'évaluation :",null,null,null,null,null,"Session :",null,{"$f":"ELEVES!G2","v":2014}]
[null,null,null,null,null,null,null,"Etablissement :",null,null,null,null,"Nom du candidat :",null,null,null,null,null,null,null,null,null,null,"Etablissement :",null,null,null,null,"Nom du candidat :"]
[]
[null,null,null,null,null,null,null,"Entreprise :",null,null,null,null,"Prénom :",null,null,null,null,null,null,null,null,null,null,"Entreprise :",null,null,null,null,"Prénom :"]
[null,null,null,null,null,null,null,null,null,null,null,null,"Date de l'évaluation :",null,null,null,null,null,null,null,null,null,null,null,null,null,null,null,"Date de l'évaluation :"]
["Compétences",null,null,null,null,null,"Indicateurs d'évaluation",null,null,null,null,null,"EVALUATION",null,null,null,"Compétences",null,null,null,null,null,"Indicateurs d'évaluation",null,null,null,null,null,"EVALUATION"]
["(ce sont celles prévues par le référentiel de certification, à l'exclusion de toute autre)",null,null,null,null,null,"(ce sont ceux du référentiel de compétences à l'exclusion de tout autre)",null,null,null,null,null,"-  -","+","+  +",null,"(ce sont celles prévues par le référentiel de certification, à l'exclusion de toute autre)",null,null,null,null,null,"(ce sont ceux du référentiel de compétences à l'exclusion de tout autre)",null,null,null,null,null,"-  -","+","+  +"]
["C3.1",null,"Prendre les mesures morphologiques",null,null,null,"Le client est informé et corectement installé",null,null,null,null,null,null,null,null,null,"C3.1",null,"Prendre les mesures morphologiques",null,null,null,"Le client est informé et corectement installé"]
[null,null,null,null,null,null,"Le matériel utilisé est correctement choisi",null,null,null,null,null,null,null,null,null,null,null,null,null,null,null,"Le matériel utilisé est correctement choisi"]
[null,null,null,null,null,null,"La démarche de prise de mesures est structurée",null,null,null,null,null,null,null,null,null,null,null,null,null,null,null,"La démarche de prise de mesures est structurée"]
[null,null,null,null,null,null,"Les valeurs sont vérifiées et exactes",null,null,null,null,null,null,null,null,null,null,null,null,null,null,null,"Les valeurs sont vérifiées et exactes"]
[null,null,null,null,null,null,"La fiche de mesures est correctement renseignée",null,null,null,null,null,null,null,null,null,null,null,null,null,null,null,"La fiche de mesures est correctement renseignée"]
[null,null,null,null,null,null,"Les matériels sont désinfectés",null,null,null,null,null,null,null,null,null,null,null,null,null,null,null,"Les matériels sont désinfectés"]
["C3.4",null,"Essayer, ajuster et valider un équipement",null,null,null,"La constitution de l'équipement est justifiée",null,null,null,null,null,null,null,null,null,"C3.4",null,"Essayer, ajuster et valider un équipement",null,null,null,"La constitution de l'équipement est justifiée"]
[null,null,null,null,null,null,"L'équipement est correctement ajusté",null,null,null,null,null,null,null,null,null,null,null,null,null,null,null,"L'équipement est correctement ajusté"]
[null,null,null,null,null,null,"L'argumentation est adaptée au client",null,null,null,null,null,null,null,null,null,null,null,null,null,null,null,"L'argumentation est adaptée au client"]
[null,null,null,null,null,null,"Les demandes du client sont prises en compte",null,null,null,null,null,null,null,null,null,null,null,null,null,null,null,"Les demandes du client sont prises en compte"]
[null,null,null,null,null,null,"les documents sont correctement renseignés",null,null,null,null,null,null,null,null,null,null,null,null,null,null,null,"les documents sont correctement renseignés"]
["C5.1",null,"Identifier, traiter et transmettre des informations",null,null,null,"Les informations sont identifiées, analysées et identifiées en fonction des destinataires",null,null,null,null,null,null,null,null,null,"C5.1",null,"Identifier, traiter et transmettre des informations",null,null,null,"Les informations sont identifiées, analysées et identifiées en fonction des destinataires"]
[null,null,null,null,null,null,"La transmission (fond et forme) est adaptée au message et à l'interlocuteur",null,null,null,null,null,null,null,null,null,null,null,null,null,null,null,"La transmission (fond et forme) est adaptée au message et à l'interlocuteur"]
["C5.5",null,"Se situer dans l'entreprise",null,null,null,"Les droits et obligations affairant à l'exercice de la profession sont identifiés.",null,null,null,null,null,null,null,null,null,"C5.5",null,"Se situer dans l'entreprise",null,null,null,"Les droits et obligations affairant à l'exercice de la profession sont identifiés."]
[null,null,null,null,null,null,"L'attitude à tenir et/ou les personnes ou organismes à consulter sont explicités",null,null,null,null,null,null,null,null,null,null,null,null,null,null,null,"L'attitude à tenir et/ou les personnes ou organismes à consulter sont explicités"]
[]
["ÉVALUATION EN MILIEU PROFESSIONNEL",null,null,null,null,null,null,null,null,null,null,null,null,null,null,null,"SITUATION D'ÉVALUATION EN ÉTABLISSEMENT"]
[]
["Appréciation globale et proposition de note :",null,null,null,null,null,null,null,null,null,null,null,null,null,null,null,"Appréciation globale et proposition de note :"]
[]
[]
[]
["Noms et signatures des évaluateurs :",null,null,null,null,null,null,"Note proposée :",null,null,null,null,"Note coefficientée :",null,null,null,"Noms et signatures des évaluateurs :",null,null,null,null,null,null,"Note proposée :",null,null,null,null,"Note coefficientée :"]
[null,null,null,null,null,null,null,null,{"$f":"IF(OR(Cache!F63>=2,Cache!F64>=2,Cache!F65>=2,Cache!F66>=2,Cache!F67>=2,Cache!F68>=2,Cache!F69>=2,Cache!F70>=2,Cache!F71>=2,Cache!F72>=2,Cache!F73>=2,Cache!F74>=2,Cache!F75>=2,Cache!F76>=2,Cache!F77>=2),\"Erreur\",ROUNDUP(SUM((Cache!D39/Cache!F39)*60/100,(Cache!E39/Cache!F39))*20,0))","v":{"$error":"#DIV/0!"}},"/20",null,null,null,{"$f":"I74*1","v":{"$error":"#DIV/0!"}},"/20",null,null,null,null,null,null,null,null,null,{"$f":"IF(OR(Cache!F63>=2,Cache!F64>=2,Cache!F65>=2,Cache!F66>=2,Cache!F67>=2,Cache!F68>=2,Cache!F69>=2,Cache!F70>=2,Cache!F71>=2,Cache!F72>=2,Cache!F73>=2,Cache!F74>=2,Cache!F75>=2,Cache!F76>=2,Cache!F77>=2),\"Erreur\",ROUNDUP(SUM((Cache!D59/Cache!F59)*60/100,(Cache!E59/Cache!F59))*20,0))","v":{"$error":"#DIV/0!"}},"/20",null,null,null,{"$f":"Y74*2","v":{"$error":"#DIV/0!"}},"/40"]
[]
[]
[]
[]
[]
[null,null,null,"Baccalauréat professionnel Optique Lunetterie"]
["Epreuve E3.2  (unité U3.2) : Adaptation et prise de mesures"]
["Etablissement : (tampon)",null,null,null,null,null,"Lieu d'évaluation :",null,null,null,null,null,"Session :",null,{"$f":"ELEVES!G2","v":2014}]
[null,null,null,null,null,null,null,"Etablissement :",null,null,null,null,"Nom du candidat :"]
[]
[null,null,null,null,null,null,null,"Entreprise :",null,null,null,null,"Prénom :"]
[null,null,null,null,null,null,null,null,null,null,null,null,"Date de l'évaluation :"]
["Compétences",null,null,null,null,null,"Indicateurs d'évaluation",null,null,null,null,null,"EVALUATION"]
["(ce sont celles prévues par le référentiel de certification, à l'exclusion de toute autre)",null,null,null,null,null,"(ce sont ceux du référentiel de compétences à l'exclusion de tout autre)",null,null,null,null,null,"-  -","+","+  +"]
["C3.1",null,"Prendre les mesures morphologiques",null,null,null,"Le client est informé et corectement installé",null,null,null,null,null,{"$f":"IF(M51=\"X\",\"X\",IF(AC51=\"X\",\"X\",\" \"))","v":" "},{"$f":"IF(N51=\"X\",\"X\",IF(AD51=\"X\",\"X\",\" \"))","v":" "},{"$f":"IF(O51=\"X\",\"X\",IF(AE51=\"X\",\"X\",\" \"))","v":" "}]
[null,null,null,null,null,null,"Le matériel utilisé est correctement choisi",null,null,null,null,null,{"$f":"IF(M52=\"X\",\"X\",IF(AC52=\"X\",\"X\",\" \"))","v":" "}," "," "]
[null,null,null,null,null,null,"La démarche de prise de mesures est structurée",null,null,null,null,null," "," "," "]
[null,null,null,null,null,null,"Les valeurs sont vérifiées et exactes",null,null,null,null,null," "," "," "]
[null,null,null,null,null,null,"La fiche de mesures est correctement renseignée",null,null,null,null,null," "," "," "]
[null,null,null,null,null,null,"Les matériels sont désinfectés",null,null,null,null,null," "," "," "]
["C3.4",null,"Essayer, ajuster et valider un équipement",null,null,null,"La constitution de l'équipement est justifiée",null,null,null,null,null," "," "," "]
[null,null,null,null,null,null,"L'équipement est correctement ajusté",null,null,null,null,null," "," "," "]
[null,null,null,null,null,null,"L'argumentation est adaptée au client",null,null,null,null,null," "," "," "]
[null,null,null,null,null,null,"Les demandes du client sont prises en compte",null,null,null,null,null," "," "," "]
[null,null,null,null,null,null,"les documents sont correctement renseignés",null,null,null,null,null," "," "," "]
["C5.1",null,"Identifier, traiter et transmettre des informations",null,null,null,"Les informations sont identifiées, analysées et identifiées en fonction des destinataires",null,null,null,null,null," "," "," "]
[null,null,null,null,null,null,"La transmission (fond et forme) est adaptée au message et à l'interlocuteur",null,null,null,null,null," "," "," "]
["C5.5",null,"Se situer dans l'entreprise",null,null,null,"Les droits et obligations affairant à l'exercice de la profession sont identifiés.",null,null,null,null,null," "," "," "]
[null,null,null,null,null,null,"L'attitude à tenir et/ou les personnes ou organismes à consulter sont explicités",null,null,null,null,null," "," "," "]
["SITUATION D'ÉVALUATION EN ÉTABLISSEMENT"]
["Appréciation globale et proposition de note :"]
[{"$f":"IF(ISBLANK(Q70),\" \",Q70)","v":" "}]
[{"$f":"IF(ISBLANK(Q71),\" \",Q71)","v":" "}]
[]
["Noms et signatures des évaluateurs :",null,null,null,null,null,null,"Note proposée :",null,null,null,null,"Note coefficientée :"]
[null,null,null,null,null,null,null,null,{"$f":"Y74","v":{"$error":"#DIV/0!"}},"/20",null,null,null,{"$f":"AD74","v":{"$error":"#DIV/0!"}},"/40"]
[]
["ÉVALUATION EN MILIEU PROFESSIONNEL"]
["Appréciation globale et proposition de note :"]
[{"$f":"IF(ISBLANK(A70),\" \",A70)","v":" "}]
[{"$f":"IF(ISBLANK(A71),\" \",A71)","v":" "}]
[]
["Noms et signatures des évaluateurs :",null,null,null,null,null,null,"Note proposée :",null,null,null,null,"Note coefficientée :"]
[null,null,null,null,null,null,null,null,{"$f":"I74","v":{"$error":"#DIV/0!"}},"/20",null,null,null,{"$f":"N74","v":{"$error":"#DIV/0!"}},"/20"]
[]
[]
[null,null,null,"Évaluation globale :",null,null,null,null,"Note coefficientée : "]
[null,null,null,null,null,{"$f":"ROUNDUP((N118+N110)/3,0)","v":{"$error":"#DIV/0!"}},"/20",null,null,null,null,null,{"$f":"F122*5","v":{"$error":"#DIV/0!"}},"/100"]
[]
[null,null,null,"Baccalauréat professionnel Optique Lunetterie",null,null,null,null,null,null,null,null,null,null,null,null,null,null,null,"Baccalauréat professionnel Optique Lunetterie"]
["Epreuve E3.3  (unité U3.3) : Réalisation, Contrôle d'équipement",null,null,null,null,null,null,null,null,null,null,null,null,null,null,null,"Epreuve E3.3  (unité U3.3) : Réalisation, Contrôle d'équipement"]
["Etablissement : (tampon)",null,null,null,null,null,"Lieu d'évaluation :",null,null,null,null,null,"Session :",null,{"$f":"ELEVES!G2","v":2014},null,"Etablissement : (tampon)",null,null,null,null,null,"Lieu d'évaluation :",null,null,null,null,null,"Session :",null,{"$f":"ELEVES!G2","v":2014}]
[null,null,null,null,null,null,null,"Etablissement :",null,null,null,null,"Nom du candidat :",null,null,null,null,null,null,null,null,null,null,"Etablissement :",null,null,null,null,"Nom du candidat :"]
[]
[null,null,null,null,null,null,null,"Entreprise :",null,null,null,null,"Prénom :",null,null,null,null,null,null,null,null,null,null,"Entreprise :",null,null,null,null,"Prénom :"]
[null,null,null,null,null,null,null,null,null,null,null,null,"Date de l'évaluation :",null,null,null,null,null,null,null,null,null,null,null,null,null,null,null,"Date de l'évaluation :"]
["Compétences",null,null,null,null,null,"Indicateurs d'évaluation",null,null,null,null,null,"EVALUATION",null,null,null,"Compétences",null,null,null,null,null,"Indicateurs d'évaluation",null,null,null,null,null,"EVALUATION"]
["(ce sont celles prévues par le référentiel de certification, à l'exclusion de toute autre)",null,null,null,null,null,"(ce sont ceux du référentiel de compétences à l'exclusion de tout autre)",null,null,null,null,null,"-  -","+","+  +",null,"(ce sont celles prévues par le référentiel de certification, à l'exclusion de toute autre)",null,null,null,null,null,"(ce sont ceux du référentiel de compétences à l'exclusion de tout autre)",null,null,null,null,null,"-  -","+","+  +"]
["C2.2",null,"Préparer les moyens de mise en œuvre",null,null,null,"Les produits sont approvisionnés",null,null,null,null,null,null,null,null,null,"C2.2",null,"Préparer les moyens de mise en œuvre",null,null,null,"Les produits sont approvisionnés"]
[null,null,null,null,null,null,"Les moyens de mise en œuvre sont correctement choisis et opérationnels",null,null,null,null,null,null,null,null,null,null,null,null,null,null,null,"Les moyens de mise en œuvre sont correctement choisis et opérationnels"]
["C3.2",null,"Monter, assembler un équipement d'optique",null,null,null,"Les spécificités des composants sont reconnues",null,null,null,null,null,null,null,null,null,"C3.2",null,"Monter, assembler un équipement d'optique",null,null,null,"Les spécificités des composants sont reconnues"]
[null,null,null,null,null,null,"Les spécifications de montage sont identifiées",null,null,null,null,null,null,null,null,null,null,null,null,null,null,null,"Les spécifications de montage sont identifiées"]
[null,null,null,null,null,null,"Le matériel utilisé est correctement choisi",null,null,null,null,null,null,null,null,null,null,null,null,null,null,null,"Le matériel utilisé est correctement choisi"]
[null,null,null,null,null,null,"La démarche de réalisation est structurée",null,null,null,null,null,null,null,null,null,null,null,null,null,null,null,"La démarche de réalisation est structurée"]
[null,null,null,null,null,null,"Les différents contrôles sont effectués et des actions correctives conduites si nécessaire",null,null,null,null,null,null,null,null,null,null,null,null,null,null,null,"Les différents contrôles sont effectués et des actions correctives conduites si nécessaire"]
[null,null,null,null,null,null,"Le produit est qualifié",null,null,null,null,null,null,null,null,null,null,null,null,null,null,null,"Le produit est qualifié"]
[null,null,null,null,null,null,"Les matériels sont nettoyés et remis en état",null,null,null,null,null,null,null,null,null,null,null,null,null,null,null,"Les matériels sont nettoyés et remis en état"]
[null,null,null,null,null,null,"Les activités de mise en œuvre respectent les procédures (normes, hygiène, santé, sécurité, environnement)",null,null,null,null,null,null,null,null,null,null,null,null,null,null,null,"Les activités de mise en œuvre respectent les procédures (normes, hygiène, santé, sécurité, environnement)"]
["C4.2",null,"Remettre ou maintenir en l'état l'équipement optique d'un client",null,null,null,"Les interventions sont définies",null,null,null,null,null,null,null,null,null,"C4.2",null,"Remettre ou maintenir en l'état l'équipement optique d'un client",null,null,null,"Les interventions sont définies"]
[null,null,null,null,null,null,"L'équipement optiquen est caractérisé",null,null,null,null,null,null,null,null,null,null,null,null,null,null,null,"L'équipement optiquen est caractérisé"]
["C4.3",null,"Contribuer à la maintenance des équipements du magasin et de l'atelier",null,null,null,"Les non conformités sont identifées",null,null,null,null,null,null,null,null,null,"C4.3",null,"Contribuer à la maintenance des équipements du magasin et de l'atelier",null,null,null,"Les non conformités sont identifées"]
[null,null,null,null,null,null,"Les équipements sont conformes et opérationnels",null,null,null,null,null,null,null,null,null,null,null,null,null,null,null,"Les équipements sont conformes et opérationnels"]
[null,null,null,null,null,null,"Les documents de maintenance sont renseignés",null,null,null,null,null,null,null,null,null,null,null,null,null,null,null,"Les documents de maintenance sont renseignés"]
["C5.4",null,"Animer et coordonner des activités de groupe",null,null,null,"L'argumentaire est clair et rigoureux",null,null,null,null,null,null,null,null,null,"C5.4",null,"Animer et coordonner des activités de groupe",null,null,null,"L'argumentaire est clair et rigoureux"]
[null,null,null,null,null,null,"Les consignes sont clairement transmises",null,null,null,null,null,null,null,null,null,null,null,null,null,null,null,"Les consignes sont clairement transmises"]
[null,null,null,null,null,null,"L'organisation est adaptée aux objectifs",null,null,null,null,null,null,null,null,null,null,null,null,null,null,null,"L'organisation est adaptée aux objectifs"]
[]
["ÉVALUATION EN MILIEU PROFESSIONNEL",null,null,null,null,null,null,null,null,null,null,null,null,null,null,null,"SITUATION D'ÉVALUATION EN ÉTABLISSEMENT"]
[]
["Appréciation globale et proposition de note :",null,null,null,null,null,null,null,null,null,null,null,null,null,null,null,"Appréciation globale et proposition de note :"]
[]
[]
[]
["Noms et signatures des évaluateurs :",null,null,null,null,null,null,"Note proposée :",null,null,null,null,"Note coefficientée :",null,null,null,"Noms et signatures des évaluateurs :",null,null,null,null,null,null,"Note proposée :",null,null,null,null,"Note coefficientée :"]
[null,null,null,null,null,null,null,null,{"$f":"IF(OR(Cache!F129>=2,Cache!F130>=2,Cache!F131>=2,Cache!F132>=2,Cache!F133>=2,Cache!F134>=2,Cache!F135>=2,Cache!F136>=2,Cache!F137>=2,Cache!F138>=2,Cache!F139>=2,Cache!F140>=2,Cache!F141>=2,Cache!F142>=2,Cache!F143>=2,Cache!F144>=2,Cache!F146>=2,Cache!F146>=2),\"Erreur\",ROUNDUP(SUM((Cache!D102/Cache!F102)*60/100,(Cache!E102/Cache!F102))*20,0))","v":{"$error":"#DIV/0!"}},"/20",null,null,null,{"$f":"I159*1","v":{"$error":"#DIV/0!"}},"/20",null,null,null,null,null,null,null,null,null,{"$f":"IF(OR(Cache!F129>=2,Cache!F130>=2,Cache!F131>=2,Cache!F132>=2,Cache!F133>=2,Cache!F134>=2,Cache!F135>=2,Cache!F136>=2,Cache!F137>=2,Cache!F138>=2,Cache!F139>=2,Cache!F140>=2,Cache!F141>=2,Cache!F142>=2,Cache!F143>=2,Cache!F144>=2,Cache!F145>=2,Cache!F146>=2),\"Erreur\",ROUNDUP(SUM((Cache!D125/Cache!F125)*60/100,(Cache!E125/Cache!F125))*20,0))","v":{"$error":"#DIV/0!"}},"/20",null,null,null,{"$f":"Y159*2","v":{"$error":"#DIV/0!"}},"/40"]
[]
[]
[]
[]
[]
[null,null,null,"Baccalauréat professionnel Optique Lunetterie"]
["Epreuve E3.3  (unité U3.3) : Réalisation, Contrôle d'équipement"]
["Etablissement : (tampon)",null,null,null,null,null,"Lieu d'évaluation :",null,null,null,null,null,"Session :",null,{"$f":"ELEVES!G2","v":2014}]
[null,null,null,null,null,null,null,"Etablissement :",null,null,null,null,"Nom du candidat :"]
[]
[null,null,null,null,null,null,null,"Entreprise :",null,null,null,null,"Prénom :"]
[null,null,null,null,null,null,null,null,null,null,null,null,"Date de l'évaluation :"]
["Compétences",null,null,null,null,null,"Indicateurs d'évaluation",null,null,null,null,null,"EVALUATION"]
["(ce sont celles prévues par le référentiel de certification, à l'exclusion de toute autre)",null,null,null,null,null,"(ce sont ceux du référentiel de compétences à l'exclusion de tout autre)",null,null,null,null,null,"-  -","+","+  +"]
["C2.2",null,"Préparer les moyens de mise en œuvre",null,null,null,"Les produits sont approvisionnés",null,null,null,null,null,{"$f":"IF(M133=\"X\",\"X\",IF(AC133=\"X\",\"X\",\" \"))","v":" "},{"$f":"IF(N133=\"X\",\"X\",IF(AD133=\"X\",\"X\",\" \"))","v":" "}," "]
[null,null,null,null,null,null,"Les moyens de mise en œuvre sont correctement choisis et opérationnels",null,null,null,null,null,{"$f":"IF(M134=\"X\",\"X\",IF(AC134=\"X\",\"X\",\" \"))","v":" "}," "," "]
["C3.2",null,"Monter, assembler un équipement d'optique",null,null,null,"Les spécificités des composants sont reconnues",null,null,null,null,null," "," "," "]
[null,null,null,null,null,null,"Les spécifications de montage sont identifiées",null,null,null,null,null," "," "," "]
[null,null,null,null,null,null,"Le matériel utilisé est correctement choisi",null,null,null,null,null," "," "," "]
[null,null,null,null,null,null,"La démarche de réalisation est structurée",null,null,null,null,null," "," "," "]
[null,null,null,null,null,null,"Les différents contrôles sont effectués et des actions correctives conduites si nécessaire",null,null,null,null,null," "," "," "]
[null,null,null,null,null,null,"Le produit est qualifié",null,null,null,null,null," "," "," "]
[null,null,null,null,null,null,"Les matériels sont nettoyés et remis en état",null,null,null,null,null," "," "," "]
[null,null,null,null,null,null,"Les activités de mise en œuvre respectent les procédures (normes, hygiène, santé, sécurité, environnement)",null,null,null,null,null," "," "," "]
["C4.2",null,"Remettre ou maintenir en l'état l'équipement optique d'un client",null,null,null,"Les interventions sont définies",null,null,null,null,null," "," "," "]
[null,null,null,null,null,null,"L'équipement optiquen est caractérisé",null,null,null,null,null," "," "," "]
["C4.3",null,"Contribuer à la maintenance des équipements du magasin et de l'atelier",null,null,null,"Les non conformités sont identifées",null,null,null,null,null," "," "," "]
[null,null,null,null,null,null,"Les équipements sont conformes et opérationnels",null,null,null,null,null," "," "," "]
[null,null,null,null,null,null,"Les documents de maintenance sont renseignés",null,null,null,null,null," "," "," "]
["C5.4",null,"Animer et coordonner des activités de groupe",null,null,null,"L'argumentaire est clair et rigoureux",null,null,null,null,null," "," "," "]
[null,null,null,null,null,null,"Les consignes sont clairement transmises",null,null,null,null,null," ",{"$f":"IF(N149=\"X\",\"X\",IF(AD149=\"X\",\"X\",\" \"))","v":" "},{"$f":"IF(O149=\"X\",\"X\",IF(AE149=\"X\",\"X\",\" \"))","v":" "}]
[null,null,null,null,null,null,"L'organisation est adaptée aux objectifs",null,null,null,null,null," "," "," "]
[]
["SITUATION D'ÉVALUATION EN ÉTABLISSEMENT"]
[]
["Appréciation globale et proposition de note :"]
[{"$f":"IF(ISBLANK(Q155),\" \",Q155)","v":" "}]
[{"$f":"IF(ISBLANK(Q156),\" \",Q156)","v":" "}]
[]
["Noms et signatures des évaluateurs :",null,null,null,null,null,null,"Note proposée :",null,null,null,null,"Note coefficientée :"]
[null,null,null,null,null,null,null,null,{"$f":"Y159","v":{"$error":"#DIV/0!"}},"/20",null,null,null,{"$f":"I200*2","v":{"$error":"#DIV/0!"}},"/40"]
[]
["ÉVALUATION EN MILIEU PROFESSIONNEL"]
["Appréciation globale et proposition de note :"]
[{"$f":"IF(ISBLANK(A155),\" \",A155)","v":" "}]
[{"$f":"IF(ISBLANK(A156),\" \",A156)","v":" "}]
[]
["Noms et signatures des évaluateurs :",null,null,null,null,null,null,"Note proposée :",null,null,null,null,"Note coefficientée :"]
[null,null,null,null,null,null,null,null,{"$f":"I159","v":{"$error":"#DIV/0!"}},"/20",null,null,null,{"$f":"I208*1","v":{"$error":"#DIV/0!"}},"/20"]
[]
[]
[null,null,null,"Évaluation globale :",null,null,null,null,"Note coefficientée : "]
[null,null,null,null,null,{"$f":"ROUNDUP((N208+N200)/3,0)","v":{"$error":"#DIV/0!"}},"/20",null,null,null,null,null,{"$f":"F212*4","v":{"$error":"#DIV/0!"}},"/80"]

{"sheet":"Cache","index":3,"n_rows":170,"n_cols":31,"rows_kept":170,"cut":false,"hidden":true,"merged":[[80,2,80,5],[103,2,103,5],[126,2,126,5],[0,2,0,5],[20,2,20,5],[40,2,40,5],[60,2,60,5]]}
["X",null,"Vérification des croix évaluants les indicateurs",null,null,null,"GRILLE E3.1 : Examen Préalable"]
[null,"Indicateurs","Non acquis --","Partiellement acquis +","Acquis ++","Sum"]
[null,"C1.2 a)",0,0,0,{"$f":"SUM(C3:E3)","v":0}]
[null,"C1.2 b)",0,0,0,0]
[null,"C3.1 a)",0,0,0,0,null,null,null,null,null,null,null,null,"ALFRED 3"]
[null,"C3.1 b)",0,0,0,0]
[null,"C3.1 c)",0,0,0,0,null,null,null,null,null,null,null,null,"coucou 3"]
[null,"C3.1 d)",0,0,0,0]
[null,"C3.1 e)",0,0,0,0]
[null,"C3.1 f)",0,0,0,0]
[null,"C3.3 a)",0,0,0,0]
[null,"C3.3 b)",0,0,0,0]
[null,"C3.3 c)",0,0,0,0]
[null,"C3.3 d)",0,0,0,0]
[null,"C3.3 e)",0,0,0,0]
[null,"C5.2 a)",0,0,0,0]
[null,"C5.2 b)",0,0,0,0]
[]
[null,"nombre de croix",{"$f":"SUM(C3:C17)","v":0},{"$f":"SUM(D3:D17)","v":0},{"$f":"SUM(E3:E17)","v":0},{"$f":"SUM(F3:F18)","v":0},"nombre total d'indicateurs validés"]
[]
[null,null,"Vérification des croix évaluants les indicateurs",null,null,null,"GRILLE E3.2 : Adaptation et prise de mesures"]
[null,"Indicateurs","Non acquis --","Partiellement acquis +","Acquis ++","Sum","ÉVALUATION EN MILIEU PROFESSIONNEL"]
[null,"C3.1 a)",0,0,0,{"$f":"SUM(C23:E23)","v":0}]
[null,"C3.1 b)",0,0,0,0]
[null,"C3.1 c)",0,0,0,0]
[null,"C3.1 d)",0,0,0,0]
[null,"C3.1 e)",0,0,0,0]
[null,"C3.1 f)",0,0,0,0]
[null,"C3.4 a)",0,0,0,{"$f":"SUM(C29:E29)","v":0}]
[null,"C3.4 b)",0,0,0,0]
[null,"C3.4 c)",0,0,0,0]
[null,"C3.4 d)",0,0,0,0]
[null,"C3.4 e)",0,0,0,0]
[null,"C5.1 a)",0,0,0,0]
[null,"C5.1 b)",0,0,0,0]
[null,"C5.5 a)",0,0,0,0]
[null,"C5.5 b)",0,0,0,0]
[]
[null,"Nombre de croix",{"$f":"SUM(C23:C37)","v":0},{"$f":"SUM(D23:D37)","v":0},{"$f":"SUM(E23:E37)","v":0},{"$f":"SUM(F23:F37)","v":0},"Nombre total d'indicateurs évalués"]
[]
[null,null,"Vérification des croix évaluants les indicateurs",null,null,null,"GRILLE E3.2 : Adaptation et prise de mesures"]
[null,"Indicateurs","Non acquis --","Partiellement acquis +","Acquis ++","Sum","SITUATION D'ÉVALUATION EN ÉTABLISSEMENT"]
[null,"C3.1 a)",0,0,0,{"$f":"SUM(C43:E43)","v":0}]
[null,"C3.1 b)",0,0,0,{"$f":"SUM(C44:E44)","v":0}]
[null,"C3.1 c)",0,0,0,0,null,null,null,null,null,null,null,null,"ALFRED 3",null,null,null,null,null,null,null,null,null,null,null,null,null,null,null,"ALFRED 3"]
[null,"C3.1 d)",0,0,0,0]
[null,"C3.1 e)",0,0,0,0,null,null,null,null,null,null,null,null,"coucou 3",null,null,null,null,null,null,null,null,null,null,null,null,null,null,null,"coucou 3"]
[null,"C3.1 f)",0,0,0,0]
[null,"C3.4 a)",0,0,0,0]
[null,"C3.4 b)",0,0,0,0]
[null,"C3.4 c)",0,0,0,0]
[null,"C3.4 d)",0,0,0,0]
[null,"C3.4 e)",0,0,0,0]
[null,"C5.1 a)",0,0,0,0]
[null,"C5.1 b)",0,0,0,0]
[null,"C5.5 a)",0,0,0,0]
[null,"C5.5 b)",0,0,0,0]
[]
[null,"Nombre de croix",{"$f":"SUM(C43:C57)","v":0},{"$f":"SUM(D43:D57)","v":0},{"$f":"SUM(E43:E57)","v":0},{"$f":"SUM(F43:F57)","v":0},"Nombre total d'indicateurs évalués"]
[]
[null,null,"Vérification des croix évaluants les indicateurs",null,null,null,"GRILLE E3.2 : Adaptation et prise de mesures"]
[null,"Indicateurs",null,null,null,"Sum","SYNTHESE"]
[null,"C3.1 a)",null,null,null,{"$f":"F23+F43","v":0},"ÉVALUATION EN MILIEU PROFESSIONNEL"]
[null,"C3.1 b)",null,null,null,{"$f":"F24+F44","v":0},"ET"]
[null,"C3.1 c)",null,null,null,{"$f":"F25+F45","v":0},"SITUATION D'ÉVALUATION EN ÉTABLISSEMENT"]
[null,"C3.1 d)",null,null,null,0]
[null,"C3.1 e)",null,null,null,0]
[null,"C3.1 f)",null,null,null,0]
[null,"C3.4 a)",null,null,null,0]
[null,"C3.4 b)",null,null,null,0]
[null,"C3.4 c)",null,null,null,0]
[null,"C3.4 d)",null,null,null,0]
[null,"C3.4 e)",null,null,null,0]
[null,"C5.1 a)",null,null,null,0]
[null,"C5.1 b)",null,null,null,0]
[null,"C5.5 a)",null,null,null,0]
[null,"C5.5 b)",null,null,null,0]
[]
[]
[]
[null,null,"Vérification des croix évaluants les indicateurs",null,null,null,"GRILLE E3.3 : Réalisation contrôle d'équipement"]
[null,"Indicateurs","Non acquis --","Partiellement acquis +","Acquis ++","Sum","ÉVALUATION EN MILIEU PROFESSIONNEL"]
[null,"C2.2 a)",0,0,0,{"$f":"SUM(C83:E83)","v":0},null,null,null,null,null,null,null,null,"ALFRED 3"]
[null,"C2.2 b)",0,0,0,{"$f":"SUM(C84:E84)","v":0}]
[null,"C3.2 a)",0,0,0,0,null,null,null,null,null,null,null,null,"coucou 3"]
[null,"C3.2 b)",0,0,0,0]
[null,"C3.2 c)",0,0,0,0]
[null,"C3.2 d)",0,0,0,0]
[null,"C3.2 e)",0,0,0,0]
[null,"C3.2 f)",0,0,0,0]
[null,"C3.2 g)",0,0,0,0]
[null,"C3.2 h)",0,0,0]
[null,"C4.2 a)",0,0,0,0]
[null,"C4.2 b)",0,0,0,0]
[null,"C4.3 a)",0,0,0,0]
[null,"C4.3 b)",0,0,0,0]
[null,"C4.3 c)",0,0,0,0]
[null,"C5.4 a)",0,0,0,{"$f":"SUM(C98:E98)","v":0}]
[null,"C5.4 b)",0,0,0,0]
[null,"C5.4 c)",0,0,0,0]
[]
[null,"Nombre de croix",{"$f":"SUM(C83:C100)","v":0},{"$f":"SUM(D83:D100)","v":0},{"$f":"SUM(E83:E100)","v":0},{"$f":"SUM(F83:F100)","v":0},"Nombre total d'indicateurs évalués"]
[]
[null,null,"Vérification des croix évaluants les indicateurs",null,null,null,"GRILLE E3.3 : Réalisation contrôle d'équipement"]
[null,"Indicateurs","Non acquis --","Partiellement acquis +","Acquis ++","Sum","SITUATION D'ÉVALUATION EN ÉTABLISSEMENT"]
[null,"C2.2 a)",0,0,0,{"$f":"SUM(C106:E106)","v":0}]
[null,"C2.2 b)",0,0,0,{"$f":"SUM(C107:E107)","v":0}]
[null,"C3.2 a)",0,0,0,0]
[null,"C3.2 b)",0,0,0,0]
[null,"C3.2 c)",0,0,0,0]
[null,"C3.2 d)",0,0,0,0]
[null,"C3.2 e)",0,0,0,0]
[null,"C3.2 f)",0,0,0,0]
[null,"C3.2 g)",0,0,0,0]
[null,"C3.2 h)",0,0,0,0]
[null,"C4.2 a)",0,0,0,0]
[null,"C4.2 b)",0,0,0,0]
[null,"C4.3 a)",0,0,0,0]
[null,"C4.3 b)",0,0,0,0]
[null,"C4.3 c)",0,0,0,0]
[null,"C5.4 a)",0,0,0,0]
[null,"C5.4 b)",0,0,0,0]
[null,"C5.4 c)",0,0,0,{"$f":"SUM(C123:E123)","v":0}]
[]
[null,"Nombre de croix",{"$f":"SUM(C106:C123)","v":0},{"$f":"SUM(D106:D123)","v":0},{"$f":"SUM(E106:E123)","v":0},{"$f":"SUM(F106:F123)","v":0},"Nombre total d'indicateurs évalués"]
[]
[null,null,"Vérification des croix évaluants les indicateurs",null,null,null,"GRILLE E3.3 : Réalisation contrôle d'équipement",null,null,null,null,null,null,null,"ALFRED 3",null,null,null,null,null,null,null,null,null,null,null,null,null,null,null,"ALFRED 3"]
[null,"Indicateurs",null,null,null,"Sum","SYNTHESE"]
[null,"C2.2 a)",null,null,null,{"$f":"SUM(F83,F106)","v":0},"ÉVALUATION EN MILIEU PROFESSIONNEL",null,null,null,null,null,null,null,"coucou 3",null,null,null,null,null,null,null,null,null,null,null,null,null,null,null,"coucou 3"]
[null,"C2.2 b)",null,null,null,{"$f":"SUM(F84,F107)","v":0},"ET"]
[null,"C3.2 a)",null,null,null,0,"SITUATION D'ÉVALUATION EN ÉTABLISSEMENT"]
[null,"C3.2 b)",null,null,null,0]
[null,"C3.2 c)",null,null,null,0]
[null,"C3.2 d)",null,null,null,0]
[null,"C3.2 e)",null,null,null,0]
[null,"C3.2 f)",null,null,null,0]
[null,"C3.2 g)",null,null,null,0]
[null,"C3.2 h)",null,null,null,0]
[null,"C4.2 a)",null,null,null,0]
[null,"C4.2 b)",null,null,null,0]
[null,"C4.3 a)",null,null,null,0]
[null,"C4.3 b)",null,null,null,0]
[null,"C4.3 c)",null,null,null,0]
[null,"C5.4 a)",null,null,null,0]
[null,"C5.4 b)",null,null,null,0]
[null,"C5.4 c)",null,null,null,{"$f":"SUM(F100,F123)","v":0}]
[]
[]
[]
[]
[]
[]
[]
[]
[]
[]
[]
[]
[]
[]
[]
[]
[]
[]
[]
[]
[]
[null,null,null,null,null,null,null,null,null,null,null,null,null,null,"ALFRED 3"]
[]
[null,null,null,null,null,null,null,null,null,null,null,null,null,null,"coucou 3"]